[Event "Titled Tuesday Blitz November 15 Early 2022"]
[White "Paravyan, David"]
[Black "Ibarra Jerez, Jose Carlos"]
[WhiteFideId "4194985"]
[BlackFideId "2226332"]
[WhiteElo "2546"]
[BlackElo "2638"]
[Result "1/2-1/2"]
[Round "10"]
[TimeControl "180+1"]
[Date "2022.11.15"]
[WhiteClock "0:00:03"]
[BlackClock "0:00:07"]

1. e4 {[%clk 0:03:00]}  c5 {[%clk 0:02:58]} 2. Nf3 {[%clk 0:03:01]}  e6 {[%clk 0:02:58]} 3. d4 {[%clk 0:03:01]}  cxd4 {[%clk 0:02:59]} 4. Nxd4 {[%clk 0:03:02]}  Bc5 {[%clk 0:03:00]} 5. Nb3 {[%clk 0:02:48]}  Bb6 {[%clk 0:03:00]} 6. Nc3 {[%clk 0:02:46]}  Ne7 {[%clk 0:03:00]} 7. a4 {[%clk 0:02:46]}  Nbc6 {[%clk 0:03:00]} 8. Bd3 {[%clk 0:02:44]}  O-O {[%clk 0:03:00]} 9. O-O {[%clk 0:02:44]}  f5 {[%clk 0:03:01]} 10. Bd2 {[%clk 0:02:33]}  f4 {[%clk 0:03:01]} 11. Qh5 {[%clk 0:02:27]}  Ng6 {[%clk 0:02:58]} 12. a5 {[%clk 0:02:25]}  Bc7 {[%clk 0:02:56]} 13. Nb5 {[%clk 0:02:12]}  Be5 {[%clk 0:02:55]} 14. c3 {[%clk 0:02:09]}  a6 {[%clk 0:02:44]} 15. N5d4 {[%clk 0:02:07]}  Qf6 {[%clk 0:02:38]} 16. Nf3 {[%clk 0:02:07]}  Bc7 {[%clk 0:02:38]} 17. Rae1 {[%clk 0:02:00]}  Nce5 {[%clk 0:02:38]} 18. Be2 {[%clk 0:01:59]}  Nxf3+ {[%clk 0:02:36]} 19. Bxf3 {[%clk 0:02:00]}  Ne5 {[%clk 0:02:36]} 20. Nd4 {[%clk 0:01:58]}  Bxa5 {[%clk 0:02:28]} 21. g3 {[%clk 0:01:56]}  g6 {[%clk 0:02:06]} 22. Qh3 {[%clk 0:01:53]}  Nxf3+ {[%clk 0:01:51]} 23. Nxf3 {[%clk 0:01:51]}  e5 {[%clk 0:01:45]} 24. gxf4 {[%clk 0:01:50]}  d6 {[%clk 0:01:36]} 25. Qg2 {[%clk 0:01:46]}  exf4 {[%clk 0:01:35]} 26. e5 {[%clk 0:01:46]}  dxe5 {[%clk 0:01:35]} 27. Nxe5 {[%clk 0:01:45]}  f3 {[%clk 0:01:34]} 28. Qg3 {[%clk 0:01:45]}  Bc7 {[%clk 0:01:32]} 29. Bh6 {[%clk 0:01:34]}  Re8 {[%clk 0:01:18]} 30. Nxg6 {[%clk 0:01:04]}  Bxg3 {[%clk 0:00:53]} 31. Rxe8+ {[%clk 0:00:59]}  Kf7 {[%clk 0:00:54]} 32. Rf8+ {[%clk 0:01:00]}  Kxg6 {[%clk 0:00:54]} 33. Rxf6+ {[%clk 0:01:01]}  Kxf6 {[%clk 0:00:54]} 34. fxg3 {[%clk 0:00:44]}  Bg4 {[%clk 0:00:54]} 35. h3 {[%clk 0:00:38]}  Bxh3 {[%clk 0:00:54]} 36. Rxf3+ {[%clk 0:00:38]}  Kg6 {[%clk 0:00:55]} 37. Bf4 {[%clk 0:00:33]}  Rd8 {[%clk 0:00:53]} 38. Re3 {[%clk 0:00:33]}  Rd1+ {[%clk 0:00:49]} 39. Kf2 {[%clk 0:00:33]}  Rb1 {[%clk 0:00:49]} 40. b4 {[%clk 0:00:30]}  Bg4 {[%clk 0:00:46]} 41. Re7 {[%clk 0:00:29]}  Rb2+ {[%clk 0:00:46]} 42. Ke1 {[%clk 0:00:29]}  b5 {[%clk 0:00:44]} 43. Re5 {[%clk 0:00:23]}  h5 {[%clk 0:00:43]} 44. Rg5+ {[%clk 0:00:23]}  Kf6 {[%clk 0:00:43]} 45. Rc5 {[%clk 0:00:24]}  Ke6 {[%clk 0:00:43]} 46. Kf1 {[%clk 0:00:21]}  Ra2 {[%clk 0:00:42]} 47. Kg1 {[%clk 0:00:21]}  Bf3 {[%clk 0:00:41]} 48. Kf1 {[%clk 0:00:18]}  Bd5 {[%clk 0:00:40]} 49. Rc8 {[%clk 0:00:16]}  Bc4+ {[%clk 0:00:38]} 50. Ke1 {[%clk 0:00:16]}  Kf5 {[%clk 0:00:38]} 51. Re8 {[%clk 0:00:11]}  Kg4 {[%clk 0:00:36]} 52. Bc7 {[%clk 0:00:10]}  Rc2 {[%clk 0:00:34]} 53. Re3 {[%clk 0:00:08]}  Kh3 {[%clk 0:00:33]} 54. Kd1 {[%clk 0:00:08]}  Rf2 {[%clk 0:00:30]} 55. Kc1 {[%clk 0:00:07]}  Bb3 {[%clk 0:00:25]} 56. Kb1 {[%clk 0:00:05]}  Ba2+ {[%clk 0:00:25]} 57. Kc1 {[%clk 0:00:04]}  Bb3 {[%clk 0:00:25]} 58. Be5 {[%clk 0:00:04]}  Kg4 {[%clk 0:00:23]} 59. Re4+ {[%clk 0:00:02]}  Kf5 {[%clk 0:00:21]} 60. Re3 {[%clk 0:00:03]}  Rg2 {[%clk 0:00:20]} 61. Bc7 {[%clk 0:00:03]}  Rc2+ {[%clk 0:00:19]} 62. Kb1 {[%clk 0:00:03]}  Rf2 {[%clk 0:00:20]} 63. Kc1 {[%clk 0:00:03]}  Rg2 {[%clk 0:00:20]} 64. Re5+ {[%clk 0:00:03]}  Kg4 {[%clk 0:00:18]} 65. Re8 {[%clk 0:00:04]}  Rc2+ {[%clk 0:00:17]} 66. Kb1 {[%clk 0:00:04]}  Rxc3 {[%clk 0:00:17]} 67. Bd6 {[%clk 0:00:03]}  Rd3 {[%clk 0:00:17]} 68. Bc7 {[%clk 0:00:03]}  Kh3 {[%clk 0:00:15]} 69. Kb2 {[%clk 0:00:03]}  Bc4 {[%clk 0:00:15]} 70. Rh8 {[%clk 0:00:03]}  Rb3+ {[%clk 0:00:15]} 71. Kc2 {[%clk 0:00:03]}  Rxb4 {[%clk 0:00:14]} 72. Rxh5+ {[%clk 0:00:03]}  Kg4 {[%clk 0:00:14]} 73. Rh6 {[%clk 0:00:04]}  Rb3 {[%clk 0:00:13]} 74. Rxa6 {[%clk 0:00:03]}  Rf3 {[%clk 0:00:12]} 75. Ra7 {[%clk 0:00:02]}  b4 {[%clk 0:00:10]} 76. Bb6 {[%clk 0:00:03]}  Rc3+ {[%clk 0:00:09]} 77. Kb2 {[%clk 0:00:03]}  Rb3+ {[%clk 0:00:09]} 78. Kc2 {[%clk 0:00:03]}  Rc3+ {[%clk 0:00:10]} 79. Kb2 {[%clk 0:00:04]}  Bd5 {[%clk 0:00:07]} 80. Rd7 {[%clk 0:00:03]}  Be6 {[%clk 0:00:07]} 81. Rd4+ {[%clk 0:00:03]}  Kxg3 {[%clk 0:00:05]} 82. Rxb4 {[%clk 0:00:02]}  Rd3 {[%clk 0:00:06]} 83. Bd4 {[%clk 0:00:02]}  Bf5 {[%clk 0:00:06]} 84. Bc3 {[%clk 0:00:02]}  Kf3 {[%clk 0:00:05]} 85. Rb8 {[%clk 0:00:03]}  Be4 {[%clk 0:00:06]} 86. Kb3 {[%clk 0:00:03]}  Rd5 {[%clk 0:00:06]} 87. Kc4 {[%clk 0:00:03]}  Rd7 {[%clk 0:00:06]} 88. Bd4 {[%clk 0:00:02]}  Rc7+ {[%clk 0:00:05]} 89. Bc5 {[%clk 0:00:02]}  Rd7 {[%clk 0:00:06]} 90. Rf8+ {[%clk 0:00:02]}  Kg4 {[%clk 0:00:06]} 91. Rf2 {[%clk 0:00:03]}  Bf5 {[%clk 0:00:06]} 92. Be3 {[%clk 0:00:03]}  Be6+ {[%clk 0:00:06]} 93. Kc3 {[%clk 0:00:03]}  Rc7+ {[%clk 0:00:05]} 94. Kd4 {[%clk 0:00:03]}  Rc4+ {[%clk 0:00:06]} 95. Ke5 {[%clk 0:00:03]}  Bc8 {[%clk 0:00:06]} 96. Bd4 {[%clk 0:00:03]}  Ra4 {[%clk 0:00:06]} 97. Rf4+ {[%clk 0:00:03]}  Kh5 {[%clk 0:00:05]} 98. Rf8 {[%clk 0:00:03]}  Ra5+ {[%clk 0:00:04]} 99. Kd6 {[%clk 0:00:04]}  Bb7 {[%clk 0:00:04]} 100. Bc5 {[%clk 0:00:04]}  Ra6+ {[%clk 0:00:05]} 101. Ke5 {[%clk 0:00:04]}  Kg6 {[%clk 0:00:04]} 102. Rg8+ {[%clk 0:00:03]}  Kf7 {[%clk 0:00:04]} 103. Rh8 {[%clk 0:00:04]}  Ra5 {[%clk 0:00:04]} 104. Kd4 {[%clk 0:00:04]}  Ra4+ {[%clk 0:00:04]} 105. Kc3 {[%clk 0:00:04]}  Re4 {[%clk 0:00:04]} 106. Rh7+ {[%clk 0:00:04]}  Ke6 {[%clk 0:00:03]} 107. Rxb7 {[%clk 0:00:05]}  Kd5 {[%clk 0:00:04]} 108. Bb4 {[%clk 0:00:05]}  Rc4+ {[%clk 0:00:04]} 109. Kb3 {[%clk 0:00:05]}  Rg4 {[%clk 0:00:03]} 110. Rc7 {[%clk 0:00:05]}  Rg6 {[%clk 0:00:02]} 111. Rc5+ {[%clk 0:00:05]}  Ke6 {[%clk 0:00:03]} 112. Kc4 {[%clk 0:00:04]}  Rg4+ {[%clk 0:00:02]} 113. Kb5 {[%clk 0:00:05]}  Rf4 {[%clk 0:00:03]} 114. Rc6+ {[%clk 0:00:05]}  Kd5 {[%clk 0:00:03]} 115. Rd6+ {[%clk 0:00:05]}  Ke5 {[%clk 0:00:04]} 116. Rd8 {[%clk 0:00:06]}  Rf5 {[%clk 0:00:04]} 117. Bc5 {[%clk 0:00:06]}  Ke4 {[%clk 0:00:04]} 118. Kc4 {[%clk 0:00:07]}  Kf3 {[%clk 0:00:03]} 119. Bd4 {[%clk 0:00:07]}  Kg4 {[%clk 0:00:03]} 120. Kd3 {[%clk 0:00:07]}  Rg5 {[%clk 0:00:04]} 121. Ke4 {[%clk 0:00:07]}  Rg6 {[%clk 0:00:05]} 122. Rf8 {[%clk 0:00:07]}  Re6+ {[%clk 0:00:05]} 123. Be5 {[%clk 0:00:07]}  Rg6 {[%clk 0:00:06]} 124. Bf6 {[%clk 0:00:08]}  Kh5 {[%clk 0:00:06]} 125. Rh8+ {[%clk 0:00:06]}  Kg4 {[%clk 0:00:06]} 126. Ke5 {[%clk 0:00:06]}  Kf3 {[%clk 0:00:06]} 127. Kf5 {[%clk 0:00:07]}  Rg2 {[%clk 0:00:06]} 128. Ra8 {[%clk 0:00:07]}  Ke2 {[%clk 0:00:07]} 129. Be5 {[%clk 0:00:06]}  Kf2 {[%clk 0:00:07]} 130. Ke4 {[%clk 0:00:06]}  Ke2 {[%clk 0:00:08]} 131. Ra2+ {[%clk 0:00:06]}  Kf1 {[%clk 0:00:08]} 132. Ra1+ {[%clk 0:00:07]}  Ke2 {[%clk 0:00:09]} 133. Bf4 {[%clk 0:00:07]}  Kf2 {[%clk 0:00:09]} 134. Ra2+ {[%clk 0:00:07]}  Kf1 {[%clk 0:00:09]} 135. Bd2 {[%clk 0:00:06]}  Ke2 {[%clk 0:00:08]} 136. Be3+ {[%clk 0:00:05]}  Kf1 {[%clk 0:00:08]} 137. Ra1+ {[%clk 0:00:05]}  Ke2 {[%clk 0:00:09]} 138. Rb1 {[%clk 0:00:05]}  Rg4+ {[%clk 0:00:09]} 139. Bf4 {[%clk 0:00:05]}  Rg2 {[%clk 0:00:10]} 140. Rc1 {[%clk 0:00:05]}  Kf2 {[%clk 0:00:09]} 141. Ra1 {[%clk 0:00:04]}  Ke2 {[%clk 0:00:10]} 142. Rb1 {[%clk 0:00:05]}  Kf2 {[%clk 0:00:10]} 143. Be3+ {[%clk 0:00:06]}  Ke2 {[%clk 0:00:10]} 144. Rb3 {[%clk 0:00:05]}  Kf1 {[%clk 0:00:10]} 145. Bf4 {[%clk 0:00:04]}  Ke2 {[%clk 0:00:10]} 146. Bg3 {[%clk 0:00:05]}  Kf1 {[%clk 0:00:10]} 147. Rb1+ {[%clk 0:00:05]}  Ke2 {[%clk 0:00:11]} 148. Kf4 {[%clk 0:00:03]}  Kd3 {[%clk 0:00:10]} 149. Kf3 {[%clk 0:00:03]}  Rc2 {[%clk 0:00:10]} 150. Be5 {[%clk 0:00:03]}  Kc4 {[%clk 0:00:10]} 151. Ke3 {[%clk 0:00:03]}  Kd5 {[%clk 0:00:09]} 152. Kd3 {[%clk 0:00:04]}  Rc6 {[%clk 0:00:09]} 153. Bd4 {[%clk 0:00:03]}  Rg6 {[%clk 0:00:08]} 154. Rb5+ {[%clk 0:00:03]}  Ke6 {[%clk 0:00:09]} 155. Re5+ {[%clk 0:00:03]}  Kd7 {[%clk 0:00:08]} 156. Kc4 {[%clk 0:00:03]}  Re6 {[%clk 0:00:07]} 157. Rh5 {[%clk 0:00:03]} 1/2-1/2


[Site "https://www.chess.com"]

[Event "Titled Tuesday Blitz November 15 Early 2022"]
[White "Pichot, Alan"]
[Black "Jobava, Baadur"]
[WhiteFideId "110973"]
[BlackFideId "13601520"]
[WhiteElo "2560"]
[BlackElo "2582"]
[Result "0-1"]
[Round "10"]
[TimeControl "180+1"]
[Date "2022.11.15"]
[WhiteClock "0:01:22"]
[BlackClock "0:01:57"]

1. Nf3 {[%clk 0:02:46]}  d5 {[%clk 0:02:59]} 2. d4 {[%clk 0:02:45]}  Nf6 {[%clk 0:02:59]} 3. Bg5 {[%clk 0:02:44]}  Ne4 {[%clk 0:02:58]} 4. Bf4 {[%clk 0:02:43]}  Bf5 {[%clk 0:02:56]} 5. Nbd2 {[%clk 0:02:42]}  e6 {[%clk 0:02:57]} 6. e3 {[%clk 0:02:42]}  Bd6 {[%clk 0:02:56]} 7. Bd3 {[%clk 0:02:42]}  O-O {[%clk 0:02:56]} 8. O-O {[%clk 0:02:42]}  Nd7 {[%clk 0:02:55]} 9. Bxd6 {[%clk 0:02:39]}  cxd6 {[%clk 0:02:55]} 10. Qe2 {[%clk 0:02:37]}  h6 {[%clk 0:02:52]} 11. h3 {[%clk 0:02:26]}  Ndf6 {[%clk 0:02:52]} 12. Rfc1 {[%clk 0:02:23]}  Qb6 {[%clk 0:02:47]} 13. Rab1 {[%clk 0:02:23]}  Rac8 {[%clk 0:02:34]} 14. c3 {[%clk 0:02:14]}  Rfe8 {[%clk 0:02:30]} 15. Bxe4 {[%clk 0:02:05]}  dxe4 {[%clk 0:02:25]} 16. Ne1 {[%clk 0:02:05]}  e5 {[%clk 0:02:20]} 17. Nc2 {[%clk 0:02:01]}  Bd7 {[%clk 0:02:08]} 18. Rd1 {[%clk 0:01:59]}  d5 {[%clk 0:02:00]} 19. f3 {[%clk 0:01:22]}  Bb5 {[%clk 0:01:57]} 20. Qf2 {[%clk 0:01:22]}  Bd3 {[%clk 0:01:57]} 21. Rdc1 {[%clk 0:01:22]}  Bxc2 {[%clk 0:01:56]} 22. Rxc2 {[%clk 0:01:22]}  exd4 {[%clk 0:01:57]} 0-1


[Site "https://www.chess.com"]

[Event "Titled Tuesday Blitz November 15 Early 2022"]
[White "Pino Perez, Lazaro"]
[Black "Mrudul Dehankar"]
[WhiteFideId "3517055"]
[BlackFideId "25096990"]
[WhiteElo "2170"]
[BlackElo "2068"]
[Result "0-1"]
[Round "10"]
[TimeControl "180+1"]
[Date "2022.11.16"]
[WhiteClock "0:00:02"]
[BlackClock "0:00:30"]

1. d4 {[%clk 0:03:00]}  Nf6 {[%clk 0:02:57]} 2. Bf4 {[%clk 0:03:00]}  e6 {[%clk 0:02:57]} 3. e3 {[%clk 0:02:59]}  b6 {[%clk 0:02:58]} 4. Qf3 {[%clk 0:02:58]}  Nc6 {[%clk 0:02:55]} 5. Nc3 {[%clk 0:02:57]}  Bb7 {[%clk 0:02:56]} 6. O-O-O {[%clk 0:02:53]}  Qc8 {[%clk 0:02:35]} 7. e4 {[%clk 0:02:52]}  Bb4 {[%clk 0:02:26]} 8. Nge2 {[%clk 0:02:26]}  Ne7 {[%clk 0:02:18]} 9. h4 {[%clk 0:01:34]}  d5 {[%clk 0:01:29]} 10. e5 {[%clk 0:01:17]}  Ne4 {[%clk 0:01:25]} 11. h5 {[%clk 0:01:14]}  c5 {[%clk 0:01:09]} 12. a3 {[%clk 0:00:45]}  Bxc3 {[%clk 0:00:59]} 13. Nxc3 {[%clk 0:00:46]}  cxd4 {[%clk 0:00:59]} 14. Rxd4 {[%clk 0:00:30]}  O-O {[%clk 0:00:51]} 15. Nxe4 {[%clk 0:00:19]}  dxe4 {[%clk 0:00:51]} 16. Qd1 {[%clk 0:00:13]}  Nf5 {[%clk 0:00:49]} 17. Rd7 {[%clk 0:00:10]}  Bc6 {[%clk 0:00:48]} 18. Rd2 {[%clk 0:00:09]}  Qc7 {[%clk 0:00:45]} 19. g4 {[%clk 0:00:09]}  Ne7 {[%clk 0:00:44]} 20. Be3 {[%clk 0:00:08]}  Rad8 {[%clk 0:00:44]} 21. h6 {[%clk 0:00:02]}  Qxe5 {[%clk 0:00:30]} 0-1


[Site "https://www.chess.com"]

[Event "Titled Tuesday Blitz November 15 Early 2022"]
[White "Player, Edmund C"]
[Black "Ricaurte Lopez, Juan Carlos"]
[WhiteFideId "406520"]
[BlackFideId "3600327"]
[WhiteElo "2103"]
[BlackElo "2209"]
[Result "1-0"]
[Round "10"]
[TimeControl "180+1"]
[Date "2022.11.16"]
[WhiteClock "0:01:19"]
[BlackClock "0:00:04"]

1. e4 {[%clk 0:03:00]}  e5 {[%clk 0:02:57]} 2. Nf3 {[%clk 0:03:00]}  Nc6 {[%clk 0:02:55]} 3. Bc4 {[%clk 0:03:00]}  Nf6 {[%clk 0:02:53]} 4. d3 {[%clk 0:03:00]}  Bc5 {[%clk 0:02:51]} 5. c3 {[%clk 0:03:01]}  d6 {[%clk 0:02:47]} 6. O-O {[%clk 0:03:01]}  a6 {[%clk 0:02:44]} 7. b4 {[%clk 0:03:00]}  Ba7 {[%clk 0:02:42]} 8. a4 {[%clk 0:03:00]}  O-O {[%clk 0:02:31]} 9. Nbd2 {[%clk 0:03:01]}  Be6 {[%clk 0:02:28]} 10. Bxe6 {[%clk 0:02:57]}  fxe6 {[%clk 0:02:26]} 11. h3 {[%clk 0:02:57]}  b5 {[%clk 0:02:19]} 12. Re1 {[%clk 0:02:43]}  Qe8 {[%clk 0:02:07]} 13. Nf1 {[%clk 0:02:42]}  Nh5 {[%clk 0:02:04]} 14. N1h2 {[%clk 0:02:35]}  h6 {[%clk 0:01:55]} 15. Ra2 {[%clk 0:02:32]}  g5 {[%clk 0:01:53]} 16. Ng4 {[%clk 0:02:25]}  Qg6 {[%clk 0:01:48]} 17. Bd2 {[%clk 0:02:04]}  Rf7 {[%clk 0:01:25]} 18. axb5 {[%clk 0:02:02]}  axb5 {[%clk 0:01:23]} 19. Qa1 {[%clk 0:01:58]}  Raf8 {[%clk 0:01:09]} 20. Rxa7 {[%clk 0:01:43]}  Nxa7 {[%clk 0:01:06]} 21. Qxa7 {[%clk 0:01:44]}  Ng7 {[%clk 0:00:35]} 22. Ngh2 {[%clk 0:01:26]}  c5 {[%clk 0:00:17]} 23. Qb6 {[%clk 0:01:24]}  cxb4 {[%clk 0:00:18]} 24. cxb4 {[%clk 0:01:23]}  Nh5 {[%clk 0:00:12]} 25. Qxd6 {[%clk 0:01:21]}  Nf4 {[%clk 0:00:11]} 26. Nxe5 {[%clk 0:01:21]}  Qf6 {[%clk 0:00:07]} 27. Bxf4 {[%clk 0:01:19]}  Qxf4 {[%clk 0:00:05]} 28. Nxf7 {[%clk 0:01:19]}  Rxf7 {[%clk 0:00:04]} 29. Qxf4 {[%clk 0:01:19]} 1-0


[Site "https://www.chess.com"]

[Event "Titled Tuesday Blitz November 15 Early 2022"]
[White "Postnikov, Daniil"]
[Black "Sreyas Payyappat"]
[WhiteFideId "4166329"]
[BlackFideId "46674969"]
[WhiteElo "2261"]
[BlackElo "2083"]
[Result "1-0"]
[Round "10"]
[TimeControl "180+1"]
[Date "2022.11.16"]
[WhiteClock "0:00:18"]
[BlackClock "0:00:08"]

1. e4 {[%clk 0:02:59]}  c6 {[%clk 0:02:58]} 2. d4 {[%clk 0:02:59]}  d5 {[%clk 0:02:59]} 3. e5 {[%clk 0:02:59]}  Bf5 {[%clk 0:02:57]} 4. Nf3 {[%clk 0:02:59]}  e6 {[%clk 0:02:56]} 5. Be2 {[%clk 0:03:00]}  c5 {[%clk 0:02:53]} 6. O-O {[%clk 0:03:01]}  Nc6 {[%clk 0:02:53]} 7. c3 {[%clk 0:03:01]}  Nge7 {[%clk 0:02:51]} 8. Na3 {[%clk 0:02:47]}  Ng6 {[%clk 0:02:49]} 9. Nc2 {[%clk 0:02:45]}  cxd4 {[%clk 0:02:37]} 10. Ncxd4 {[%clk 0:02:44]}  Be4 {[%clk 0:02:35]} 11. Qa4 {[%clk 0:02:10]}  Qd7 {[%clk 0:02:31]} 12. Bb5 {[%clk 0:02:02]}  Rc8 {[%clk 0:01:47]} 13. Ng5 {[%clk 0:01:23]}  Ngxe5 {[%clk 0:01:07]} 14. Nxe4 {[%clk 0:01:17]}  dxe4 {[%clk 0:01:08]} 15. Rd1 {[%clk 0:01:14]}  Bd6 {[%clk 0:01:01]} 16. Bf4 {[%clk 0:01:05]}  Nd3 {[%clk 0:00:28]} 17. Bxd6 {[%clk 0:00:40]}  Qxd6 {[%clk 0:00:27]} 18. Nxc6 {[%clk 0:00:38]}  bxc6 {[%clk 0:00:26]} 19. Ba6 {[%clk 0:00:38]}  Rd8 {[%clk 0:00:20]} 20. Qxe4 {[%clk 0:00:38]}  Nc5 {[%clk 0:00:15]} 21. Qg4 {[%clk 0:00:24]}  Qe7 {[%clk 0:00:11]} 22. Qxg7 {[%clk 0:00:21]}  Rf8 {[%clk 0:00:10]} 23. Be2 {[%clk 0:00:19]}  Rd5 {[%clk 0:00:09]} 24. Bf3 {[%clk 0:00:18]}  Rf5 {[%clk 0:00:07]} 25. Bxc6+ {[%clk 0:00:18]}  Nd7 {[%clk 0:00:08]} 26. Rxd7 {[%clk 0:00:18]}  Qxd7 {[%clk 0:00:09]} 27. Bxd7+ {[%clk 0:00:18]}  Kxd7 {[%clk 0:00:09]} 28. Qxf8 {[%clk 0:00:19]}  Kc6 {[%clk 0:00:09]} 29. Rd1 {[%clk 0:00:19]}  Rd5 {[%clk 0:00:08]} 30. Qc8+ {[%clk 0:00:18]} 1-0


[Site "https://www.chess.com"]

[Event "Titled Tuesday Blitz November 15 Early 2022"]
[White "Potapova, Margarita"]
[Black "Petrova, Irina"]
[WhiteFideId "14126869"]
[BlackFideId "14124122"]
[WhiteElo "2272"]
[BlackElo "2023"]
[Result "0-1"]
[Round "10"]
[TimeControl "180+1"]
[Date "2022.11.16"]
[WhiteClock "0:00:57"]
[BlackClock "0:00:32"]

1. e4 {[%clk 0:03:00]}  d6 {[%clk 0:03:00]} 2. d4 {[%clk 0:03:00]}  Nf6 {[%clk 0:03:01]} 3. Nc3 {[%clk 0:03:00]}  e5 {[%clk 0:03:02]} 4. Nf3 {[%clk 0:02:59]}  Nbd7 {[%clk 0:03:01]} 5. Bc4 {[%clk 0:02:58]}  Be7 {[%clk 0:03:01]} 6. O-O {[%clk 0:02:59]}  c6 {[%clk 0:03:02]} 7. a4 {[%clk 0:02:59]}  h6 {[%clk 0:03:01]} 8. Re1 {[%clk 0:03:00]}  Qc7 {[%clk 0:03:01]} 9. b3 {[%clk 0:02:59]}  g5 {[%clk 0:02:58]} 10. a5 {[%clk 0:02:48]}  Nf8 {[%clk 0:02:56]} 11. b4 {[%clk 0:02:49]}  Ng6 {[%clk 0:02:52]} 12. b5 {[%clk 0:02:47]}  Kf8 {[%clk 0:02:41]} 13. h3 {[%clk 0:02:35]}  g4 {[%clk 0:02:34]} 14. hxg4 {[%clk 0:02:35]}  Bxg4 {[%clk 0:02:35]} 15. Be3 {[%clk 0:02:35]}  Nh4 {[%clk 0:02:31]} 16. Be2 {[%clk 0:02:34]}  Bxf3 {[%clk 0:02:23]} 17. Bxf3 {[%clk 0:02:35]}  Kg7 {[%clk 0:02:11]} 18. Be2 {[%clk 0:02:26]}  Rag8 {[%clk 0:02:09]} 19. g3 {[%clk 0:02:23]}  Kf8 {[%clk 0:02:05]} 20. Rb1 {[%clk 0:02:21]}  d5 {[%clk 0:01:50]} 21. Kh1 {[%clk 0:02:07]}  exd4 {[%clk 0:01:35]} 22. Bxd4 {[%clk 0:01:36]}  Rxg3 {[%clk 0:01:33]} 23. e5 {[%clk 0:01:21]}  Rh3+ {[%clk 0:01:31]} 24. Kg1 {[%clk 0:01:19]}  Rg8+ {[%clk 0:01:31]} 25. Bg4 {[%clk 0:01:15]}  Nxg4 {[%clk 0:01:26]} 26. Kf1 {[%clk 0:01:15]}  Nf3 {[%clk 0:01:12]} 27. Ke2 {[%clk 0:01:06]}  Nxe1 {[%clk 0:01:09]} 28. Qxe1 {[%clk 0:01:07]}  c5 {[%clk 0:00:52]} 29. Qf1 {[%clk 0:01:04]}  cxd4 {[%clk 0:00:46]} 30. Qxh3 {[%clk 0:01:03]}  Qxe5+ {[%clk 0:00:38]} 31. Kd2 {[%clk 0:00:57]}  dxc3+ {[%clk 0:00:36]} 32. Qxc3 {[%clk 0:00:58]}  Bg5+ {[%clk 0:00:33]} 33. Kd3 {[%clk 0:00:57]}  Nxf2# {[%clk 0:00:32]} 0-1


[Site "https://www.chess.com"]

[Event "Titled Tuesday Blitz November 15 Early 2022"]
[White "Przybylski, Wojciech"]
[Black "Vasques, Antonio Pedro Freixial"]
[WhiteFideId "1117599"]
[BlackFideId "1908332"]
[WhiteElo "2221"]
[BlackElo "2243"]
[Result "1-0"]
[Round "10"]
[TimeControl "180+1"]
[Date "2022.11.16"]
[WhiteClock "0:00:04"]
[BlackClock "0:00:04"]

1. d4 {[%clk 0:03:00]}  Nf6 {[%clk 0:02:45]} 2. Bg5 {[%clk 0:02:59]}  Ne4 {[%clk 0:02:40]} 3. Bc1 {[%clk 0:02:57]}  d5 {[%clk 0:02:38]} 4. f3 {[%clk 0:02:55]}  Nf6 {[%clk 0:02:34]} 5. c4 {[%clk 0:02:55]}  c6 {[%clk 0:02:32]} 6. Nc3 {[%clk 0:02:55]}  g6 {[%clk 0:02:26]} 7. Bf4 {[%clk 0:02:51]}  Bg7 {[%clk 0:02:26]} 8. e3 {[%clk 0:02:50]}  O-O {[%clk 0:02:25]} 9. cxd5 {[%clk 0:02:48]}  Nxd5 {[%clk 0:02:21]} 10. Nxd5 {[%clk 0:02:47]}  Qxd5 {[%clk 0:02:22]} 11. Qb3 {[%clk 0:02:45]}  Qa5+ {[%clk 0:02:10]} 12. Qc3 {[%clk 0:02:44]}  Qb6 {[%clk 0:01:59]} 13. Bd3 {[%clk 0:02:41]}  Nd7 {[%clk 0:01:57]} 14. Ne2 {[%clk 0:02:35]}  Nf6 {[%clk 0:01:56]} 15. Qb3 {[%clk 0:02:29]}  Qxb3 {[%clk 0:01:46]} 16. axb3 {[%clk 0:02:29]}  Nd5 {[%clk 0:01:45]} 17. Kf2 {[%clk 0:02:20]}  Nxf4 {[%clk 0:01:42]} 18. Nxf4 {[%clk 0:02:20]}  e5 {[%clk 0:01:43]} 19. dxe5 {[%clk 0:02:01]}  Bxe5 {[%clk 0:01:43]} 20. Rab1 {[%clk 0:01:59]}  Rd8 {[%clk 0:01:35]} 21. Ke2 {[%clk 0:01:54]}  Bxf4 {[%clk 0:01:14]} 22. exf4 {[%clk 0:01:54]}  Rxd3 {[%clk 0:01:15]} 23. Kxd3 {[%clk 0:01:53]}  Bf5+ {[%clk 0:01:16]} 24. Kc3 {[%clk 0:01:47]}  Bxb1 {[%clk 0:01:17]} 25. Rxb1 {[%clk 0:01:46]}  Rd8 {[%clk 0:01:15]} 26. Ra1 {[%clk 0:01:44]}  a6 {[%clk 0:01:15]} 27. Re1 {[%clk 0:01:38]}  Kf8 {[%clk 0:01:15]} 28. g4 {[%clk 0:01:36]}  Rd5 {[%clk 0:01:14]} 29. h4 {[%clk 0:01:27]}  h5 {[%clk 0:01:10]} 30. b4 {[%clk 0:01:24]}  f6 {[%clk 0:01:08]} 31. b3 {[%clk 0:01:16]}  Kf7 {[%clk 0:01:08]} 32. Rg1 {[%clk 0:01:02]}  Ke6 {[%clk 0:00:52]} 33. f5+ {[%clk 0:00:49]}  gxf5 {[%clk 0:00:46]} 34. gxh5 {[%clk 0:00:49]}  f4 {[%clk 0:00:47]} 35. Rg4 {[%clk 0:00:44]}  Rxh5 {[%clk 0:00:30]} 36. Rxf4 {[%clk 0:00:44]}  f5 {[%clk 0:00:30]} 37. Kc4 {[%clk 0:00:42]}  b6 {[%clk 0:00:30]} 38. Rd4 {[%clk 0:00:36]}  Ke5 {[%clk 0:00:28]} 39. Kd3 {[%clk 0:00:25]}  f4 {[%clk 0:00:19]} 40. Re4+ {[%clk 0:00:25]}  Kf5 {[%clk 0:00:18]} 41. Rc4 {[%clk 0:00:25]}  Rxh4 {[%clk 0:00:17]} 42. Rxc6 {[%clk 0:00:24]}  Rh3 {[%clk 0:00:18]} 43. Rxb6 {[%clk 0:00:13]}  Rxf3+ {[%clk 0:00:18]} 44. Kc4 {[%clk 0:00:14]}  Rf1 {[%clk 0:00:14]} 45. Rxa6 {[%clk 0:00:14]}  Ke4 {[%clk 0:00:13]} 46. Re6+ {[%clk 0:00:13]}  Kf3 {[%clk 0:00:13]} 47. b5 {[%clk 0:00:13]}  Rc1+ {[%clk 0:00:13]} 48. Kd4 {[%clk 0:00:12]}  Rd1+ {[%clk 0:00:12]} 49. Kc4 {[%clk 0:00:12]}  Rc1+ {[%clk 0:00:12]} 50. Kd5 {[%clk 0:00:10]}  Rc3 {[%clk 0:00:12]} 51. b4 {[%clk 0:00:10]}  Rd3+ {[%clk 0:00:10]} 52. Kc4 {[%clk 0:00:09]}  Re3 {[%clk 0:00:10]} 53. Rf6 {[%clk 0:00:09]}  Re4+ {[%clk 0:00:09]} 54. Kc5 {[%clk 0:00:08]}  Re5+ {[%clk 0:00:09]} 55. Kc4 {[%clk 0:00:08]}  Ke4 {[%clk 0:00:09]} 56. b6 {[%clk 0:00:07]}  f3 {[%clk 0:00:09]} 57. b7 {[%clk 0:00:06]}  Re8 {[%clk 0:00:09]} 58. Kc5 {[%clk 0:00:05]}  Ke3 {[%clk 0:00:09]} 59. b5 {[%clk 0:00:05]}  f2 {[%clk 0:00:09]} 60. Kc6 {[%clk 0:00:05]}  Ke2 {[%clk 0:00:04]} 61. Kc7 {[%clk 0:00:04]}  Re7+ {[%clk 0:00:04]} 62. Kc8 {[%clk 0:00:04]}  Re8+ {[%clk 0:00:04]} 63. Kd7 {[%clk 0:00:04]}  Rb8 {[%clk 0:00:04]} 64. Kc7 {[%clk 0:00:04]} 1-0


[Site "https://www.chess.com"]